fUSD/lending_fUSD_20250221
["ID","MTS","AMOUNT","RATE_DAILY","PERIOD"]
[353895945,1740117050387,-500.0,0.00013424,2]
[353895946,1740117050397,-17.72405664,0.00013424,2]
[353895947,1740117156017,1111.56327637,0.0002,120]
[353895949,1740117316036,297.71,8.767e-05,2]
[353895950,1740117342325,4883.63549528,0.000205,120]
[353895951,1740117527147,230.38119719,0.00020417,120]
[353895953,1740118039715,151.54,0.00013918,30]
[353895964,1740118232351,-540.8,0.00010457,2]
[353895965,1740118232361,-150.0,0.00010795,2]
[353895966,1740118232371,-150.0,0.00011307,2]
[353895967,1740118232381,-150.0,0.00011502,2]
[353895968,1740118232390,-25.20119555,0.00011839,2]
[353895969,1740118232402,-157.68920045,0.00011839,2]
[353895970,1740118232411,-492.54,0.00011899,2]
[353895971,1740118232422,-923.13134356,0.00011993,2]
[353895972,1740118232440,-10914.53671418,0.00011993,2]
[353895973,1740118232471,-2818.38184226,0.00011993,2]
[353895974,1740118232481,-1000.0,0.00012045,2]
[353895975,1740118232490,-150.0,0.00012092,2]
[353895976,1740118232500,-2026.0,0.00012093,2]
[353895977,1740118232510,-1274.0,0.00012093,2]
[353895978,1740118232519,-638.0,0.00012093,2]
[353895979,1740118232529,-569.0,0.00012093,2]
[353895980,1740118232538,-150.0,0.00012093,2]
[353895981,1740118232549,-528.392,0.00012093,2]
[353895982,1740118232558,-898.533,0.00012093,2]
[353895983,1740118232567,-3918.0,0.00012093,2]
[353895984,1740118232576,-150.0,0.00012093,2]
[353895985,1740118232586,-166.52,0.00012209,2]
[353895986,1740118232595,-7423.09,0.00012233,2]
[353895987,1740118232605,-175.67,0.0001234,2]
[353895988,1740118232614,-775.76,0.00012341,2]
[353895989,1740118232624,-276.04,0.00012376,2]
[353895990,1740118232633,-250.0,0.00012397,2]
[353895991,1740118232642,-540.8,0.00012721,2]
[353895992,1740118232654,-440.33,0.00013041,2]
[353895993,1740118232664,-621.71,0.00013041,2]
[353895994,1740118232675,-1043.3017568,0.00013155,2]
[353895995,1740118232684,-439.29,0.00013178,2]
[353895996,1740118232693,-439.29,0.00013178,2]
[353895997,1740118232703,-150.0,0.00013178,2]
[353895998,1740118232713,-150.0,0.00013178,2]
[353895999,1740118232722,-150.0,0.00013178,2]
[353896000,1740118232732,-437.0,0.00013178,2]
[353896001,1740118232741,-150.0,0.00013178,2]
[353896002,1740118232751,-150.0,0.00013178,2]
[353896003,1740118232760,-150.0,0.00013178,2]
[353896004,1740118232769,-150.0,0.00013178,2]
[353896005,1740118232778,-150.0,0.00013178,2]
[353896006,1740118232788,-150.0,0.00013178,2]
[353896007,1740118232799,-150.0,0.00013178,2]
[353896008,1740118232808,-255.0,0.00013181,2]
[353896009,1740118232818,-806.91227397,0.000132,2]
[353896010,1740118232828,-4761.7817,0.00013224,2]
[353896011,1740118232837,-1501.54363,0.0001329,2]
[353896012,1740118232847,-1589.0,0.000133,2]
[353896013,1740118232857,-222.6247,0.00013315,2]
[353896014,1740118232867,-9114.4406,0.00013315,2]
[353896015,1740118232876,-200.0,0.00013316,2]
[353896016,1740118232886,-500.0,0.00013317,2]
[353896017,1740118232896,-2000.0,0.00013317,2]
[353896018,1740118232907,-500.0,0.00013317,2]
[353896019,1740118232917,-200.0,0.00013317,2]
[353896020,1740118232926,-154.38493279,0.00013324,2]
[353896021,1740118232935,-2331.3517,0.00013324,2]
[353896022,1740118232944,-1000.0,0.00013324,2]
[353896023,1740118232953,-5000.0,0.00013324,2]
[353896024,1740118232963,-157.19574938,0.00013342,2]
[353896025,1740118232972,-559.33029496,0.00013377,2]
[353896026,1740118232985,-10000.0,0.000134,2]
[353896027,1740118232995,-8151.1973751,0.00013414,2]
[353896028,1740118233005,-3050.9855132,0.00013414,2]
[353896029,1740118233014,-214.8492758,0.00013414,2]
[353896030,1740118233026,-176.473,0.00013423,2]
[353896031,1740118233035,-500.0,0.00013424,2]
[353896032,1740118233046,-473.48007413,0.00013424,2]
[353896033,1740118233058,-500.63,0.00013424,2]
[353896034,1740118233067,-500.0,0.00013424,2]
[353896035,1740118233077,-500.0,0.00013424,2]
[353896036,1740118233086,-500.0,0.00013424,2]
[353896037,1740118233096,-326.97,0.00013424,2]
[353896038,1740118233106,-500.0,0.00013424,2]
[353896039,1740118233116,-295.98,0.00013424,2]
[353896040,1740118233125,-264.50314756,0.00013424,7]
[353896041,1740118233134,-311.94006667,0.00013424,2]
[353896042,1740118233144,-392.03,0.00013424,2]
[353896043,1740118233154,-500.0,0.00013424,2]
[353896044,1740118233163,-500.0,0.00013424,2]
[353896045,1740118233173,-500.0,0.00013424,2]
[353896046,1740118233183,-503.47917641,0.00013424,2]
[353896047,1740118233193,-500.0,0.00013424,2]
[353896048,1740118233203,-500.0,0.00013424,2]
[353896049,1740118233213,-283.59,0.00013424,2]
[353896050,1740118233222,-500.0,0.00013424,2]
[353896051,1740118233231,-500.0,0.00013424,2]
[353896052,1740118233241,-500.0,0.00013424,2]
[353896053,1740118233251,-500.0,0.00013424,2]
[353896054,1740118233261,-508.66089045,0.00013424,2]
[353896055,1740118233270,-500.0,0.00013424,2]
[353896056,1740118233280,-500.0,0.00013424,2]
[353896057,1740118233289,-500.0,0.00013424,2]
[353896058,1740118233299,-500.92,0.00013424,2]
[353896059,1740118233308,-500.0,0.00013424,2]
[353896060,1740118233318,-500.0,0.00013424,2]
[353896061,1740118233328,-500.0,0.00013424,2]
[353896062,1740118233337,-500.0,0.00013424,2]
[353896063,1740118233346,-500.0,0.00013424,2]
[353896064,1740118233356,-504.10100382,0.00013424,2]
[353896065,1740118233366,-620.76,0.00013424,2]
[353896066,1740118233375,-500.0,0.00013424,2]
[353896067,1740118233385,-500.0,0.00013424,2]
[353896068,1740118233395,-500.0,0.00013424,2]
[353896069,1740118233405,-636.36,0.00013424,2]
[353896070,1740118233415,-500.0,0.00013424,2]
[353896071,1740118233424,-500.0,0.00013424,2]
[353896072,1740118233434,-500.0,0.00013424,2]
[353896073,1740118233444,-500.0,0.00013424,2]
[353896074,1740118233453,-500.0,0.00013424,2]
[353896075,1740118233462,-500.0,0.00013424,2]
[353896076,1740118233471,-500.0,0.00013424,2]
[353896077,1740118233480,-500.0,0.00013424,2]
[353896078,1740118233491,-500.0,0.00013424,2]
[353896079,1740118233501,-500.0,0.00013424,2]
[353896080,1740118233510,-500.0,0.00013424,2]
[353896081,1740118233520,-500.0,0.00013424,2]
[353896082,1740118233530,-500.0,0.00013424,2]
[353896083,1740118233539,-500.0,0.00013424,2]
[353896084,1740118233550,-500.0,0.00013424,2]
[353896085,1740118233559,-540.64,0.00013424,2]
[353896086,1740118233568,-500.0,0.00013424,2]
[353896087,1740118233577,-500.0,0.00013424,2]
[353896088,1740118233587,-500.0,0.00013424,2]
[353896089,1740118233596,-500.0,0.00013424,2]
[353896090,1740118233606,-576.32582435,0.00013424,2]
[353896091,1740118233615,-500.0,0.00013424,2]
[353896092,1740118233624,-500.0,0.00013424,2]
[353896093,1740118233634,-500.22,0.00013424,2]
[353896094,1740118233643,-560.0845514,0.00013424,2]
[353896095,1740118233653,-500.0,0.00013424,2]
[353896096,1740118233663,-500.0,0.00013424,2]
[353896097,1740118233673,-500.0,0.00013424,2]
[353896098,1740118233682,-519.46,0.00013424,2]
[353896099,1740118233692,-500.0,0.00013424,2]
[353896100,1740118233702,-500.0,0.00013424,2]
[353896101,1740118233711,-508.05784587,0.00013424,2]
[353896102,1740118233720,-500.0,0.00013424,2]
[353896103,1740118233729,-500.0,0.00013424,2]
[353896104,1740118233739,-500.0,0.00013424,2]
[353896105,1740118233749,-500.0,0.00013424,2]
[353896106,1740118233758,-506.58556317,0.00013424,2]
[353896107,1740118233768,-500.0,0.00013424,2]
[353896108,1740118233778,-500.0,0.00013424,2]
[353896109,1740118233787,-501.1801333,0.00013424,2]
[353896110,1740118233796,-506.61,0.00013424,2]
[353896111,1740118233806,-500.0,0.00013424,2]
[353896112,1740118233820,-526.76320415,0.00013424,2]
[353896113,1740118233836,-500.0,0.00013424,2]
[353896114,1740118233846,-500.0,0.00013424,2]
[353896115,1740118233855,-500.0,0.00013424,2]
[353896116,1740118233865,-500.0,0.00013424,2]
[353896117,1740118233874,-500.0,0.00013424,2]
[353896118,1740118233883,-500.0,0.00013424,2]
[353896119,1740118233893,-507.33779639,0.00013424,2]
[353896120,1740118233903,-628.54554355,0.00013424,2]
[353896121,1740118233913,-611.12,0.00013424,2]
[353896122,1740118233923,-2224.83,0.00013424,2]
[353896123,1740118233933,-500.0,0.00013424,2]
[353896124,1740118233942,-500.0,0.00013424,2]
[353896125,1740118233952,-604.76,0.00013424,2]
[353896126,1740118233961,-500.0,0.00013424,2]
[353896127,1740118233971,-631.75016515,0.00013424,2]
[353896128,1740118233986,-503.3,0.00013424,2]
[353896129,1740118233996,-500.0,0.00013424,2]
[353896130,1740118234006,-500.0,0.00013424,2]
[353896131,1740118234015,-221.49,0.00013424,2]
[353896132,1740118234026,-500.0,0.00013424,2]
[353896133,1740118234036,-500.0,0.00013424,2]
[353896134,1740118234047,-501.53326184,0.00013424,2]
[353896135,1740118234058,-500.0,0.00013424,2]
[353896136,1740118234068,-500.0,0.00013424,2]
[353896137,1740118234077,-323.27692605,0.00013424,2]
[353896138,1740118234086,-500.43708325,0.00013424,2]
[353896139,1740118234096,-500.0,0.00013424,2]
[353896140,1740118234105,-500.0,0.00013424,2]
[353896141,1740118234114,-567.20046584,0.00013424,2]
[353896142,1740118234123,-394.98577474,0.00013424,2]
[353896143,1740118234133,-500.0,0.00013424,2]
[353896144,1740118234142,-500.0,0.00013424,2]
[353896145,1740118234151,-245.26,0.00013424,2]
[353896146,1740118234161,-505.68780312,0.00013424,2]
[353896147,1740118234170,-500.0,0.00013424,2]
[353896148,1740118234180,-500.0,0.00013424,2]
[353896149,1740118234190,-500.0,0.00013424,2]
[353896150,1740118234199,-503.85326905,0.00013424,2]
[353896151,1740118234209,-500.0,0.00013424,2]
[353896152,1740118234218,-500.0,0.00013424,2]
[353896153,1740118234228,-500.0,0.00013424,2]
[353896154,1740118234238,-519.07392315,0.00013424,2]
[353896155,1740118234247,-500.0,0.00013424,2]
[353896156,1740118234257,-500.0,0.00013424,2]
[353896157,1740118234267,-246.74991513,0.00013424,2]
[353896158,1740118234276,-500.0,0.00013424,2]
[353896159,1740118234286,-500.0,0.00013424,2]
[353896160,1740118234296,-500.0,0.00013424,2]
[353896161,1740118234305,-500.0,0.00013424,2]
[353896162,1740118234315,-504.49571649,0.00013424,2]
[353896163,1740118234325,-500.0,0.00013424,2]
[353896164,1740118234334,-500.0,0.00013424,2]
[353896165,1740118234343,-500.0,0.00013424,2]
[353896166,1740118234353,-500.0,0.00013424,2]
[353896167,1740118234362,-630.18,0.00013424,2]
[353896168,1740118234372,-571.03,0.00013424,2]
[353896169,1740118234381,-432.41,0.00013424,2]
[353896170,1740118234391,-500.0,0.00013424,2]
[353896171,1740118234400,-500.0,0.00013424,2]
[353896172,1740118234410,-284.37618743,0.00013424,2]
[353896173,1740118234420,-417.07,0.00013424,2]
[353896174,1740118234429,-429.42,0.00013424,2]
[353896175,1740118234438,-293.15,0.00013424,2]
[353896176,1740118234447,-500.0,0.00013424,2]
[353896177,1740118234457,-500.0,0.00013424,2]
[353896178,1740118234466,-500.0,0.00013424,2]
[353896179,1740118234475,-500.0,0.00013424,2]
[353896180,1740118234485,-367.65686183,0.00013424,2]
[353896181,1740118234494,-500.0,0.00013424,2]
[353896182,1740118234504,-535.64078318,0.00013424,2]
[353896183,1740118234513,-500.0,0.00013424,2]
[353896184,1740118234522,-503.91392196,0.00013424,2]
[353896185,1740118234531,-500.0,0.00013424,2]
[353896186,1740118234541,-500.0,0.00013424,2]
[353896187,1740118234550,-160.31,0.00013424,2]
[353896188,1740118234560,-375.8247807,0.00013424,2]
[353896189,1740118234569,-500.0,0.00013424,2]
[353896190,1740118234579,-511.5,0.00013424,2]
[353896191,1740118234588,-500.0,0.00013424,2]
[353896192,1740118234597,-500.0,0.00013424,2]
[353896193,1740118234607,-508.4248095,0.00013424,2]
[353896194,1740118234616,-503.83545773,0.00013424,2]
[353896195,1740118234625,-504.76178213,0.00013424,2]
[353896196,1740118234635,-500.0,0.00013424,2]
[353896197,1740118234644,-509.69014812,0.00013424,2]
[353896198,1740118234654,-500.0,0.00013424,2]
[353896199,1740118234663,-500.0,0.00013424,2]
[353896200,1740118234671,-509.65508638,0.00013424,2]
[353896201,1740118234681,-500.0,0.00013424,2]
[353896202,1740118234690,-510.76329021,0.00013424,2]
[353896203,1740118234699,-500.0,0.00013424,2]
[353896204,1740118234708,-512.57293284,0.00013424,2]
[353896205,1740118234718,-510.17756642,0.00013424,2]
[353896206,1740118234727,-182.33030113,0.00013424,2]
[353896207,1740118234737,-606.03272022,0.00013424,2]
[353896208,1740118234746,-515.96760865,0.00013424,2]
[353896209,1740118234755,-500.0,0.00013424,2]
[353896210,1740118234764,-425.79,0.00013424,2]
[353896211,1740118234774,-246.42,0.00013424,2]
[353896212,1740118234783,-502.56666022,0.00013424,2]
[353896213,1740118234792,-500.0,0.00013424,2]
[353896214,1740118234802,-504.79161397,0.00013424,2]
[353896215,1740118234812,-623.66456858,0.00013424,2]
[353896216,1740118234821,-500.0,0.00013424,2]
[353896217,1740118234831,-509.30424047,0.00013424,2]
[353896218,1740118234841,-519.33145603,0.00013424,2]
[353896219,1740118234850,-500.0,0.00013424,2]
[353896220,1740118234860,-505.83398036,0.00013424,2]
[353896221,1740118234869,-500.0,0.00013424,2]
[353896222,1740118234879,-454.26087986,0.00013424,2]
[353896223,1740118234890,-503.66432487,0.00013424,2]
[353896224,1740118234901,-500.0,0.00013424,2]
[353896225,1740118234911,-517.41,0.00013424,2]
[353896226,1740118234921,-506.97980906,0.00013424,2]
[353896227,1740118234931,-514.44861426,0.00013424,2]
[353896228,1740118234942,-290.44777074,0.00013424,2]
[353896229,1740118234951,-512.46836019,0.00013424,2]
[353896230,1740118234959,-511.90830587,0.00013424,2]
[353896231,1740118235117,-508.79933323,0.00013424,2]
[353896232,1740118235127,-500.0,0.00013424,2]
[353896233,1740118235136,-163.81,0.00013424,2]
[353896234,1740118235145,-508.91351281,0.00013424,2]
[353896235,1740118235155,-490.45,0.00013424,2]
[353896236,1740118235165,-632.6563909,0.00013424,2]
[353896237,1740118235174,-512.58190886,0.00013424,2]
[353896238,1740118235183,-500.0,0.00013424,2]
[353896239,1740118235192,-504.15062044,0.00013424,2]
[353896240,1740118235201,-500.0,0.00013424,2]
[353896241,1740118235211,-503.1944702,0.00013424,2]
[353896242,1740118235220,-500.0,0.00013424,2]
[353896243,1740118235229,-500.0,0.00013424,2]
[353896244,1740118235239,-517.19037412,0.00013424,2]
[353896245,1740118235249,-501.82869406,0.00013424,2]
[353896246,1740118235258,-480.88831142,0.00013424,2]
[353896247,1740118235267,-502.03697752,0.00013424,2]
[353896248,1740118235276,-500.0,0.00013424,2]
[353896249,1740118235285,-500.0,0.00013424,2]
[353896250,1740118235294,-533.47560599,0.00013424,2]
[353896251,1740118235303,-500.0,0.00013424,2]
[353896252,1740118235312,-504.08071047,0.00013424,2]
[353896253,1740118235322,-514.69,0.00013424,2]
[353896254,1740118235331,-500.0,0.00013424,2]
[353896255,1740118235340,-500.0,0.00013424,2]
[353896256,1740118235349,-503.28373818,0.00013424,2]
[353896257,1740118235358,-500.0,0.00013424,2]
[353896258,1740118235367,-500.0,0.00013424,2]
[353896259,1740118235376,-595.36,0.00013424,2]
[353896260,1740118235385,-500.0,0.00013424,2]
[353896261,1740118235394,-500.0,0.00013424,2]
[353896262,1740118235403,-500.0,0.00013424,2]
[353896263,1740118235412,-500.0,0.00013424,2]
[353896264,1740118235421,-506.7913406,0.00013424,2]
[353896265,1740118235430,-544.46,0.00013424,2]
[353896266,1740118235439,-194.70280914,0.00013424,2]
[353896267,1740118235448,-500.0,0.00013424,2]
[353896268,1740118235456,-500.0,0.00013424,2]
[353896269,1740118235465,-500.0,0.00013424,2]
[353896270,1740118235474,-506.46282393,0.00013424,2]
[353896271,1740118235484,-500.0,0.00013424,2]
[353896272,1740118235493,-500.0,0.00013424,2]
[353896273,1740118235502,-587.48147835,0.00013424,2]
[353896274,1740118235511,-500.0,0.00013424,2]
[353896275,1740118235520,-404.57775857,0.00013424,2]
[353896276,1740118235528,-500.0,0.00013424,2]
[353896277,1740118235537,-500.0,0.00013424,2]
[353896278,1740118235548,-500.0,0.00013424,2]
[353896279,1740118235557,-511.2290418,0.00013424,2]
[353896280,1740118235566,-513.9,0.00013424,2]
[353896281,1740118235575,-502.95989886,0.00013424,2]
[353896282,1740118235584,-500.0,0.00013424,2]
[353896283,1740118235593,-500.0,0.00013424,2]
[353896284,1740118235602,-500.0,0.00013424,2]
[353896285,1740118235611,-500.0,0.00013424,2]
[353896286,1740118235620,-500.0,0.00013424,2]
[353896287,1740118235629,-500.0,0.00013424,2]
[353896288,1740118235638,-603.13,0.00013424,2]
[353896289,1740118235647,-500.0,0.00013424,2]
[353896290,1740118235656,-496.495,0.00013424,2]
[353896291,1740118235665,-507.17726144,0.00013424,2]
[353896292,1740118235674,-500.0,0.00013424,2]
[353896293,1740118235683,-500.0,0.00013424,2]
[353896294,1740118235692,-500.0,0.00013424,2]
[353896295,1740118235701,-500.0,0.00013424,2]
[353896296,1740118235710,-500.0,0.00013424,2]
[353896297,1740118235719,-500.0,0.00013424,2]
[353896298,1740118235728,-500.0,0.00013424,2]
[353896299,1740118235737,-500.0,0.00013424,2]
[353896300,1740118235746,-500.0,0.00013424,2]
[353896301,1740118235755,-500.0,0.00013424,2]
[353896302,1740118235764,-500.0,0.00013424,2]
[353896303,1740118235773,-500.0,0.00013424,2]
[353896304,1740118235782,-500.0,0.00013424,2]
[353896305,1740118235791,-501.4459855,0.00013424,2]
[353896306,1740118235800,-500.0,0.00013424,2]
[353896307,1740118235809,-500.0,0.00013424,2]
[353896308,1740118235819,-500.0,0.00013424,2]
[353896309,1740118235827,-500.0,0.00013424,2]
[353896310,1740118235836,-500.0,0.00013424,2]
[353896311,1740118235845,-500.0,0.00013424,2]
[353896312,1740118235854,-500.0,0.00013424,2]
[353896313,1740118235863,-500.0,0.00013424,2]
[353896314,1740118235872,-500.0,0.00013424,2]
[353896315,1740118235881,-500.0,0.00013424,2]
[353896316,1740118235890,-500.0,0.00013424,2]
[353896317,1740118235899,-500.0,0.00013424,2]
[353896318,1740118235907,-501.13637971,0.00013424,2]
[353896319,1740118235917,-500.0,0.00013424,2]
[353896320,1740118235926,-500.0,0.00013424,2]
[353896321,1740118235935,-500.0,0.00013424,2]
[353896322,1740118235943,-500.0,0.00013424,2]
[353896323,1740118235952,-500.0,0.00013424,2]
[353896324,1740118235961,-500.0,0.00013424,2]
[353896325,1740118235970,-500.0,0.00013424,2]
[353896326,1740118235980,-503.24813955,0.00013424,2]
[353896327,1740118235990,-500.0,0.00013424,2]
[353896328,1740118235999,-500.0,0.00013424,2]
[353896329,1740118236008,-500.0,0.00013424,2]
[353896330,1740118236017,-510.86183098,0.00013424,2]
[353896331,1740118236026,-500.0,0.00013424,2]
[353896332,1740118236035,-503.84828695,0.00013424,2]
[353896333,1740118236044,-500.0,0.00013424,2]
[353896334,1740118236056,-500.0,0.00013424,2]
[353896335,1740118236065,-500.0,0.00013424,2]
[353896336,1740118236074,-513.85592296,0.00013424,2]
[353896337,1740118236083,-500.0,0.00013424,2]
[353896338,1740118236091,-500.0,0.00013424,2]
[353896339,1740118236100,-500.0,0.00013424,2]
[353896340,1740118236110,-309.4655342,0.00013424,2]
[353896341,1740118236121,-500.0,0.00013424,2]
[353896342,1740118236130,-500.0,0.00013424,2]
[353896343,1740118236139,-500.0,0.00013424,2]
[353896344,1740118236149,-500.0,0.00013424,2]
[353896345,1740118236159,-500.0,0.00013424,2]
[353896346,1740118236168,-500.0,0.00013424,2]
[353896347,1740118236177,-500.0,0.00013424,2]
[353896348,1740118236186,-500.0,0.00013424,2]
[353896349,1740118236196,-500.0,0.00013424,2]
[353896350,1740118236206,-500.0,0.00013424,2]
[353896351,1740118236215,-500.0,0.00013424,2]
[353896352,1740118236225,-500.0,0.00013424,2]
[353896353,1740118236234,-500.0,0.00013424,2]
[353896354,1740118236243,-500.0,0.00013424,2]
[353896355,1740118236252,-408.10378987,0.00013424,2]
[353896356,1740118236262,-500.0,0.00013424,2]
[353896357,1740118236271,-500.0,0.00013424,2]
[353896358,1740118236280,-500.0,0.00013424,2]
[353896359,1740118236290,-500.0,0.00013424,2]
[353896360,1740118236299,-500.0,0.00013424,2]
[353896361,1740118236308,-500.0,0.00013424,2]
[353896362,1740118236317,-461.53599065,0.00013424,2]
[353896363,1740118236326,-500.0,0.00013424,2]
[353896364,1740118236335,-500.0,0.00013424,2]
[353896365,1740118236344,-500.0,0.00013424,2]
[353896366,1740118236354,-181.78210354,0.00013424,2]
[353896367,1740118236363,-500.0,0.00013424,2]
[353896368,1740118236372,-500.0,0.00013424,2]
[353896369,1740118236383,-500.0,0.00013424,2]
[353896370,1740118236393,-500.0,0.00013424,2]
[353896371,1740118236402,-500.0,0.00013424,2]
[353896372,1740118236411,-500.0,0.00013424,2]
[353896373,1740118236421,-500.0,0.00013424,2]
[353896374,1740118236430,-500.0,0.00013424,2]
[353896375,1740118236439,-500.0,0.00013424,2]
[353896376,1740118236448,-500.0,0.00013424,2]
[353896377,1740118236457,-500.0,0.00013424,2]
[353896378,1740118236467,-500.0,0.00013424,2]
[353896379,1740118236476,-500.0,0.00013424,2]
[353896380,1740118236485,-500.0,0.00013424,2]
[353896381,1740118236495,-500.0,0.00013424,2]
[353896382,1740118236504,-500.0,0.00013424,2]
[353896383,1740118236513,-500.0,0.00013424,2]
[353896384,1740118236522,-500.0,0.00013424,2]
[353896385,1740118236531,-534.92535535,0.00013424,2]
[353896386,1740118236541,-500.0,0.00013424,2]
[353896387,1740118236551,-500.0,0.00013424,2]
[353896388,1740118236560,-521.10894904,0.00013424,2]
[353896389,1740118236572,-500.0,0.00013424,2]
[353896390,1740118236584,-522.89,0.00013424,2]
[353896391,1740118236598,-500.0,0.00013424,2]
[353896392,1740118236612,-500.0,0.00013424,2]
[353896393,1740118236623,-500.0,0.00013424,2]
[353896394,1740118236634,-506.76199648,0.00013424,2]
[353896395,1740118236645,-500.0,0.00013424,2]
[353896396,1740118236658,-500.0,0.00013424,2]
[353896397,1740118236669,-500.0,0.00013424,2]
[353896398,1740118236681,-501.0744693,0.00013424,2]
[353896399,1740118236693,-608.13249569,0.00013424,2]
[353896400,1740118236706,-500.0,0.00013424,2]
[353896401,1740118236719,-500.0,0.00013424,2]
[353896402,1740118236731,-500.0,0.00013424,2]
[353896403,1740118236743,-530.69,0.00013424,2]
[353896404,1740118236754,-330.62,0.00013424,2]
[353896405,1740118236764,-500.0,0.00013424,2]
[353896406,1740118236774,-500.0,0.00013424,2]
[353896407,1740118236789,-500.0,0.00013424,2]
[353896408,1740118236804,-500.0,0.00013424,2]
[353896409,1740118236817,-503.62433457,0.00013424,2]
[353896410,1740118236829,-500.0,0.00013424,2]
[353896411,1740118236842,-504.43398488,0.00013424,2]
[353896412,1740118236856,-500.0,0.00013424,2]
[353896413,1740118236868,-505.55023177,0.00013424,2]
[353896414,1740118236879,-500.0,0.00013424,2]
[353896415,1740118236891,-500.0,0.00013424,2]
[353896416,1740118236904,-500.0,0.00013424,2]
[353896417,1740118236915,-500.0,0.00013424,2]
[353896418,1740118236928,-500.0,0.00013424,2]
[353896419,1740118236939,-500.0,0.00013424,2]
[353896420,1740118236951,-409.61345587,0.00013424,2]
[353896421,1740118236964,-500.0,0.00013424,2]
[353896422,1740118236975,-500.0,0.00013424,2]
[353896423,1740118236991,-500.0,0.00013424,2]
[353896424,1740118237002,-507.96432863,0.00013424,2]
[353896425,1740118237015,-500.0,0.00013424,2]
[353896426,1740118237027,-500.0,0.00013424,2]
[353896427,1740118237038,-500.0,0.00013424,2]
[353896428,1740118237049,-504.20639759,0.00013424,2]
[353896429,1740118237062,-500.0,0.00013424,2]
[353896430,1740118237072,-500.0,0.00013424,2]
[353896431,1740118237083,-502.93070719,0.00013424,2]
[353896432,1740118237094,-500.0,0.00013424,2]
[353896433,1740118237107,-500.0,0.00013424,2]
[353896434,1740118237119,-502.13245355,0.00013424,2]
[353896435,1740118237129,-500.0,0.00013424,2]
[353896436,1740118237139,-500.0,0.00013424,2]
[353896437,1740118237149,-500.0,0.00013424,2]
[353896438,1740118237159,-500.0,0.00013424,2]
[353896439,1740118237170,-500.0,0.00013424,2]
[353896440,1740118237183,-500.0,0.00013424,2]
[353896441,1740118237194,-417.37989921,0.00013424,2]
[353896442,1740118237205,-500.0,0.00013424,2]
[353896443,1740118237215,-500.0,0.00013424,2]
[353896444,1740118237225,-584.05,0.00013424,2]
[353896445,1740118237235,-500.0,0.00013424,2]
[353896446,1740118237246,-500.0,0.00013424,2]
[353896447,1740118237256,-500.0,0.00013424,2]
[353896448,1740118237267,-354.6728328,0.00013424,2]
[353896449,1740118237278,-500.0,0.00013424,2]
[353896450,1740118237288,-616.74,0.00013424,2]
[353896451,1740118237300,-500.0,0.00013424,2]
[353896452,1740118237311,-504.99232928,0.00013424,2]
[353896453,1740118237321,-500.0,0.00013424,2]
[353896454,1740118237332,-500.0,0.00013424,2]
[353896455,1740118237343,-593.39632665,0.00013424,2]
[353896456,1740118237354,-500.0,0.00013424,2]